[Event "Titled Tuesday Blitz May 11 2021"]
[White "Suvorov, Luca"]
[Black "miragha_yev"]
[WhiteFideId "12977071"]
[WhiteElo "2127"]
[BlackElo "2762"]
[Result "1/2-1/2"]
[Round "01"]
[TimeControl "180+1"]
[Date "2021.05.11"]
[WhiteClock "0:00:09"]
[BlackClock "0:00:19"]

1. d4 {[%clk 0:02:57]}  e6 {[%clk 0:02:58]} 2. c4 {[%clk 0:02:55]}  d5 {[%clk 0:02:55]} 3. Nc3 {[%clk 0:02:54]}  c6 {[%clk 0:02:54]} 4. e3 {[%clk 0:02:54]}  Nd7 {[%clk 0:02:49]} 5. Qc2 {[%clk 0:02:52]}  Ngf6 {[%clk 0:02:45]} 6. Nf3 {[%clk 0:02:50]}  Bd6 {[%clk 0:02:43]} 7. Bd3 {[%clk 0:02:46]}  O-O {[%clk 0:02:43]} 8. O-O {[%clk 0:02:46]}  dxc4 {[%clk 0:02:39]} 9. Bxc4 {[%clk 0:02:47]}  b5 {[%clk 0:02:37]} 10. Bd3 {[%clk 0:02:47]}  Bb7 {[%clk 0:02:37]} 11. Rd1 {[%clk 0:02:39]}  Qe7 {[%clk 0:02:33]} 12. e4 {[%clk 0:02:38]}  e5 {[%clk 0:02:27]} 13. Ne2 {[%clk 0:02:31]}  a6 {[%clk 0:02:23]} 14. dxe5 {[%clk 0:02:07]}  Nxe5 {[%clk 0:02:23]} 15. Nxe5 {[%clk 0:02:07]}  Bxe5 {[%clk 0:02:23]} 16. f4 {[%clk 0:02:07]}  Bc7 {[%clk 0:02:21]} 17. e5 {[%clk 0:02:07]}  Bb6+ {[%clk 0:02:05]} 18. Kh1 {[%clk 0:02:03]}  Ng4 {[%clk 0:02:04]} 19. Nd4 {[%clk 0:01:28]}  Bxd4 {[%clk 0:02:01]} 20. Bxh7+ {[%clk 0:01:26]}  Kh8 {[%clk 0:02:00]} 21. Rxd4 {[%clk 0:01:27]}  Qh4 {[%clk 0:01:55]} 22. g3 {[%clk 0:01:17]}  Qxh7 {[%clk 0:01:48]} 23. Qxh7+ {[%clk 0:01:11]}  Kxh7 {[%clk 0:01:49]} 24. Rd7 {[%clk 0:01:12]}  Rab8 {[%clk 0:01:41]} 25. h3 {[%clk 0:01:09]}  Nf2+ {[%clk 0:01:36]} 26. Kg1 {[%clk 0:01:04]}  Nxh3+ {[%clk 0:01:26]} 27. Kg2 {[%clk 0:01:03]}  c5+ {[%clk 0:01:26]} 28. Kxh3 {[%clk 0:01:03]}  Bc8 {[%clk 0:01:26]} 29. e6 {[%clk 0:01:00]}  Bxd7 {[%clk 0:01:24]} 30. exd7 {[%clk 0:01:01]}  Rfd8 {[%clk 0:01:24]} 31. Be3 {[%clk 0:01:01]}  Rxd7 {[%clk 0:01:23]} 32. Bxc5 {[%clk 0:01:01]}  Rc8 {[%clk 0:01:20]} 33. b4 {[%clk 0:01:01]}  Re8 {[%clk 0:01:20]} 34. Kg4 {[%clk 0:00:59]}  Re2 {[%clk 0:01:19]} 35. a3 {[%clk 0:00:57]}  Rd3 {[%clk 0:01:12]} 36. a4 {[%clk 0:00:19]}  Rg2 {[%clk 0:01:08]} 37. axb5 {[%clk 0:00:18]}  Rgxg3+ {[%clk 0:01:02]} 38. Kf5 {[%clk 0:00:19]}  axb5 {[%clk 0:01:00]} 39. Ra5 {[%clk 0:00:16]}  Rd5+ {[%clk 0:00:56]} 40. Ke4 {[%clk 0:00:16]}  Rgd3 {[%clk 0:00:57]} 41. f5 {[%clk 0:00:15]}  g6 {[%clk 0:00:51]} 42. fxg6+ {[%clk 0:00:15]}  Kxg6 {[%clk 0:00:50]} 43. Rxb5 {[%clk 0:00:16]}  f5+ {[%clk 0:00:47]} 44. Kf4 {[%clk 0:00:16]}  R3d4+ {[%clk 0:00:43]} 45. Kf3 {[%clk 0:00:14]}  Re4 {[%clk 0:00:39]} 46. Rb6+ {[%clk 0:00:13]}  Kf7 {[%clk 0:00:39]} 47. Rb7+ {[%clk 0:00:13]}  Ke6 {[%clk 0:00:37]} 48. Re7+ {[%clk 0:00:12]}  Kf6 {[%clk 0:00:28]} 49. Rxe4 {[%clk 0:00:13]}  fxe4+ {[%clk 0:00:29]} 50. Kxe4 {[%clk 0:00:14]}  Ke6 {[%clk 0:00:30]} 51. Ke3 {[%clk 0:00:12]}  Rh5 {[%clk 0:00:30]} 52. Kd4 {[%clk 0:00:12]}  Rh4+ {[%clk 0:00:30]} 53. Kc3 {[%clk 0:00:13]}  Kd5 {[%clk 0:00:31]} 54. Kd3 {[%clk 0:00:12]}  Rh3+ {[%clk 0:00:31]} 55. Ke2 {[%clk 0:00:12]}  Ke4 {[%clk 0:00:31]} 56. Kf2 {[%clk 0:00:12]}  Rh2+ {[%clk 0:00:31]} 57. Kg3 {[%clk 0:00:12]}  Rc2 {[%clk 0:00:32]} 58. Bd6 {[%clk 0:00:10]}  Rc3+ {[%clk 0:00:31]} 59. Kg4 {[%clk 0:00:10]}  Rc1 {[%clk 0:00:32]} 60. Kg3 {[%clk 0:00:10]}  Rc2 {[%clk 0:00:31]} 61. Bc5 {[%clk 0:00:09]}  Rc3+ {[%clk 0:00:32]} 62. Kg4 {[%clk 0:00:09]}  Rc1 {[%clk 0:00:30]} 63. Kg3 {[%clk 0:00:09]}  Rf1 {[%clk 0:00:30]} 64. Kg4 {[%clk 0:00:09]}  Rf7 {[%clk 0:00:28]} 65. Kg5 {[%clk 0:00:09]}  Kd5 {[%clk 0:00:27]} 66. Kg6 {[%clk 0:00:09]}  Rf1 {[%clk 0:00:27]} 67. Kg5 {[%clk 0:00:09]}  Rb1 {[%clk 0:00:25]} 68. Kg6 {[%clk 0:00:09]}  Ke5 {[%clk 0:00:25]} 69. Kg5 {[%clk 0:00:09]}  Rb2 {[%clk 0:00:26]} 70. Kg4 {[%clk 0:00:10]}  Rb3 {[%clk 0:00:26]} 71. Be7 {[%clk 0:00:08]}  Ke6 {[%clk 0:00:26]} 72. Bc5 {[%clk 0:00:08]}  Kd5 {[%clk 0:00:26]} 73. Be7 {[%clk 0:00:08]}  Re3 {[%clk 0:00:25]} 74. Bc5 {[%clk 0:00:08]}  Rd3 {[%clk 0:00:25]} 75. Kf4 {[%clk 0:00:08]}  Rd1 {[%clk 0:00:25]} 76. Kf5 {[%clk 0:00:09]}  Rf1+ {[%clk 0:00:24]} 77. Kg4 {[%clk 0:00:09]}  Rf7 {[%clk 0:00:23]} 78. Kg5 {[%clk 0:00:09]}  Ke5 {[%clk 0:00:23]} 79. Kg6 {[%clk 0:00:08]}  Rd7 {[%clk 0:00:24]} 80. Bf8 {[%clk 0:00:07]}  Rd8 {[%clk 0:00:24]} 81. Bc5 {[%clk 0:00:07]}  Re8 {[%clk 0:00:24]} 82. Kf7 {[%clk 0:00:07]}  Ra8 {[%clk 0:00:23]} 83. Ke7 {[%clk 0:00:08]}  Kd5 {[%clk 0:00:23]} 84. Kd7 {[%clk 0:00:08]}  Rh8 {[%clk 0:00:23]} 85. Kc7 {[%clk 0:00:08]}  Rh7+ {[%clk 0:00:23]} 86. Kb6 {[%clk 0:00:08]}  Kc4 {[%clk 0:00:23]} 87. Kc6 {[%clk 0:00:07]}  Rh6+ {[%clk 0:00:23]} 88. Kd7 {[%clk 0:00:07]}  Kd5 {[%clk 0:00:23]} 89. Ke7 {[%clk 0:00:07]}  Re6+ {[%clk 0:00:22]} 90. Kf7 {[%clk 0:00:08]}  Rc6 {[%clk 0:00:23]} 91. Ke7 {[%clk 0:00:08]}  Re6+ {[%clk 0:00:17]} 92. Kf7 {[%clk 0:00:08]}  Rh6 {[%clk 0:00:17]} 93. Ke7 {[%clk 0:00:08]}  Rh7+ {[%clk 0:00:17]} 94. Kf6 {[%clk 0:00:08]}  Rb7 {[%clk 0:00:17]} 95. Kf5 {[%clk 0:00:08]}  Rf7+ {[%clk 0:00:17]} 96. Kg6 {[%clk 0:00:09]}  Ke6 {[%clk 0:00:18]} 97. Bd4 {[%clk 0:00:08]}  Rf4 {[%clk 0:00:18]} 98. Bc5 {[%clk 0:00:08]}  Rg4+ {[%clk 0:00:18]} 99. Kh5 {[%clk 0:00:09]}  Kf5 {[%clk 0:00:19]} 100. Kh6 {[%clk 0:00:09]} 1/2-1/2


[Site "https://www.chess.com"]

[Event "Titled Tuesday Blitz May 11 2021"]
[White "Tari, Aryan"]
[Black "Horak, Martin"]
[WhiteFideId "1510045"]
[BlackFideId "367095"]
[WhiteElo "2656"]
[BlackElo "1997"]
[Result "1-0"]
[Round "01"]
[TimeControl "180+1"]
[Date "2021.05.11"]
[WhiteClock "0:00:10"]
[BlackClock "0:00:06"]

1. Nf3 {[%clk 0:03:00]}  Nf6 {[%clk 0:02:55]} 2. b3 {[%clk 0:02:59]}  e6 {[%clk 0:02:50]} 3. Bb2 {[%clk 0:02:59]}  d5 {[%clk 0:02:50]} 4. g3 {[%clk 0:02:57]}  Be7 {[%clk 0:02:47]} 5. Bg2 {[%clk 0:02:57]}  O-O {[%clk 0:02:48]} 6. O-O {[%clk 0:02:57]}  c5 {[%clk 0:02:45]} 7. e3 {[%clk 0:02:55]}  Nc6 {[%clk 0:02:44]} 8. d4 {[%clk 0:02:55]}  b6 {[%clk 0:02:37]} 9. Nbd2 {[%clk 0:02:52]}  Ba6 {[%clk 0:02:28]} 10. Re1 {[%clk 0:02:52]}  Rc8 {[%clk 0:02:27]} 11. a3 {[%clk 0:02:51]}  Ne4 {[%clk 0:02:07]} 12. dxc5 {[%clk 0:02:45]}  Nxc5 {[%clk 0:02:00]} 13. Nd4 {[%clk 0:02:13]}  Nxd4 {[%clk 0:01:50]} 14. exd4 {[%clk 0:02:11]}  Nd7 {[%clk 0:01:48]} 15. Rc1 {[%clk 0:02:10]}  Nf6 {[%clk 0:01:44]} 16. Nf3 {[%clk 0:01:59]}  Bd6 {[%clk 0:01:29]} 17. Ne5 {[%clk 0:01:58]}  Qe7 {[%clk 0:01:23]} 18. Ra1 {[%clk 0:01:49]}  Rc7 {[%clk 0:01:17]} 19. c4 {[%clk 0:01:42]}  dxc4 {[%clk 0:00:55]} 20. bxc4 {[%clk 0:01:43]}  Bxc4 {[%clk 0:00:56]} 21. Nxc4 {[%clk 0:01:35]}  Rxc4 {[%clk 0:00:57]} 22. d5 {[%clk 0:01:36]}  e5 {[%clk 0:00:51]} 23. Qe2 {[%clk 0:01:36]}  Rfc8 {[%clk 0:00:46]} 24. Bxe5 {[%clk 0:01:29]}  Rc2 {[%clk 0:00:46]} 25. Qe3 {[%clk 0:01:27]}  Bc5 {[%clk 0:00:42]} 26. Bd4 {[%clk 0:01:26]}  Qxe3 {[%clk 0:00:41]} 27. Bxe3 {[%clk 0:01:26]}  Bxe3 {[%clk 0:00:37]} 28. Rxe3 {[%clk 0:01:27]}  Rd2 {[%clk 0:00:33]} 29. Re7 {[%clk 0:01:20]}  Rcc2 {[%clk 0:00:24]} 30. Rxa7 {[%clk 0:01:15]}  g6 {[%clk 0:00:24]} 31. Rf1 {[%clk 0:01:09]}  Nxd5 {[%clk 0:00:24]} 32. Be4 {[%clk 0:01:09]}  Ra2 {[%clk 0:00:22]} 33. Rc1 {[%clk 0:01:09]}  Nf6 {[%clk 0:00:20]} 34. Bb1 {[%clk 0:00:34]}  Ra1 {[%clk 0:00:18]} 35. Rac7 {[%clk 0:00:32]}  Rb2 {[%clk 0:00:13]} 36. Bd3 {[%clk 0:00:27]}  Rxc1+ {[%clk 0:00:14]} 37. Rxc1 {[%clk 0:00:28]}  Rb3 {[%clk 0:00:14]} 38. Rc8+ {[%clk 0:00:28]}  Kg7 {[%clk 0:00:13]} 39. Bc4 {[%clk 0:00:28]}  Rxa3 {[%clk 0:00:09]} 40. Rc7 {[%clk 0:00:29]}  Ne4 {[%clk 0:00:08]} 41. Rxf7+ {[%clk 0:00:28]}  Kh6 {[%clk 0:00:08]} 42. Rf4 {[%clk 0:00:21]}  Nc5 {[%clk 0:00:07]} 43. h4 {[%clk 0:00:20]}  Rc3 {[%clk 0:00:06]} 44. Kg2 {[%clk 0:00:19]}  Rc2 {[%clk 0:00:06]} 45. Rd4 {[%clk 0:00:16]}  Rc3 {[%clk 0:00:04]} 46. g4 {[%clk 0:00:17]}  Rc2 {[%clk 0:00:03]} 47. Bd5 {[%clk 0:00:15]}  Kg7 {[%clk 0:00:04]} 48. Bf3 {[%clk 0:00:15]}  Kf6 {[%clk 0:00:04]} 49. Kg3 {[%clk 0:00:14]}  Ke5 {[%clk 0:00:05]} 50. Rd5+ {[%clk 0:00:14]}  Ke6 {[%clk 0:00:05]} 51. Rd8 {[%clk 0:00:14]}  Rc3 {[%clk 0:00:06]} 52. Rb8 {[%clk 0:00:14]}  Ne4+ {[%clk 0:00:05]} 53. Kg2 {[%clk 0:00:15]}  Nd2 {[%clk 0:00:06]} 54. Rxb6+ {[%clk 0:00:15]}  Ke5 {[%clk 0:00:06]} 55. Rb5+ {[%clk 0:00:15]}  Kf4 {[%clk 0:00:05]} 56. Rb4+ {[%clk 0:00:15]}  Rc4 {[%clk 0:00:05]} 57. Rxc4+ {[%clk 0:00:07]}  Nxc4 {[%clk 0:00:06]} 58. g5 {[%clk 0:00:07]}  Ne5 {[%clk 0:00:07]} 59. Be2 {[%clk 0:00:07]}  Nd7 {[%clk 0:00:06]} 60. Bc4 {[%clk 0:00:07]}  Ne5 {[%clk 0:00:06]} 61. Be6 {[%clk 0:00:06]}  Nd3 {[%clk 0:00:04]} 62. Bc8 {[%clk 0:00:05]}  Ne5 {[%clk 0:00:02]} 63. Kh3 {[%clk 0:00:03]}  Kf3 {[%clk 0:00:02]} 64. Bb7+ {[%clk 0:00:01]}  Kxf2 {[%clk 0:00:02]} 65. Bd5 {[%clk 0:00:02]}  Ke3 {[%clk 0:00:02]} 66. Bg8 {[%clk 0:00:03]}  Kf4 {[%clk 0:00:01]} 67. Bxh7 {[%clk 0:00:03]}  Kf5 {[%clk 0:00:02]} 68. Kg3 {[%clk 0:00:04]}  Nd3 {[%clk 0:00:01]} 69. Bg8 {[%clk 0:00:04]}  Ne5 {[%clk 0:00:01]} 70. Ba2 {[%clk 0:00:05]}  Nd3 {[%clk 0:00:01]} 71. Bb1 {[%clk 0:00:06]}  Ke4 {[%clk 0:00:02]} 72. Bxd3+ {[%clk 0:00:06]}  Kxd3 {[%clk 0:00:03]} 73. Kf4 {[%clk 0:00:07]}  Kd4 {[%clk 0:00:03]} 74. h5 {[%clk 0:00:08]}  gxh5 {[%clk 0:00:03]} 75. g6 {[%clk 0:00:08]}  h4 {[%clk 0:00:04]} 76. g7 {[%clk 0:00:09]}  h3 {[%clk 0:00:05]} 77. g8=Q {[%clk 0:00:10]}  h2 {[%clk 0:00:06]} 78. Qg2 {[%clk 0:00:10]}  h1=Q {[%clk 0:00:06]} 79. Qxh1 {[%clk 0:00:10]} 1-0


[Site "https://www.chess.com"]

[Event "Titled Tuesday Blitz May 11 2021"]
[White "Tashkov, Rumen"]
[Black "Ortiz Suarez, Isan Reynaldo"]
[WhiteFideId "2904004"]
[BlackFideId "3507165"]
[WhiteElo "2160"]
[BlackElo "2539"]
[Result "0-1"]
[Round "01"]
[TimeControl "180+1"]
[Date "2021.05.11"]
[WhiteClock "0:00:03"]
[BlackClock "0:00:43"]

1. d4 {[%clk 0:02:59]}  Nf6 {[%clk 0:02:59]} 2. c4 {[%clk 0:02:58]}  c5 {[%clk 0:02:59]} 3. d5 {[%clk 0:02:57]}  b5 {[%clk 0:03:00]} 4. Nf3 {[%clk 0:02:57]}  g6 {[%clk 0:02:57]} 5. Nbd2 {[%clk 0:02:56]}  b4 {[%clk 0:02:53]} 6. e4 {[%clk 0:02:56]}  Bg7 {[%clk 0:02:53]} 7. Bd3 {[%clk 0:02:51]}  O-O {[%clk 0:02:52]} 8. O-O {[%clk 0:02:51]}  d6 {[%clk 0:02:52]} 9. h3 {[%clk 0:02:50]}  a5 {[%clk 0:02:51]} 10. a4 {[%clk 0:02:44]}  Nbd7 {[%clk 0:02:46]} 11. Nb3 {[%clk 0:02:30]}  Nb6 {[%clk 0:02:39]} 12. Re1 {[%clk 0:02:19]}  Nfd7 {[%clk 0:02:38]} 13. Qc2 {[%clk 0:02:13]}  Ne5 {[%clk 0:02:30]} 14. Nxe5 {[%clk 0:02:12]}  Bxe5 {[%clk 0:02:31]} 15. Bh6 {[%clk 0:02:05]}  Re8 {[%clk 0:02:30]} 16. Nd2 {[%clk 0:02:03]}  e6 {[%clk 0:02:25]} 17. Nf3 {[%clk 0:02:00]}  Bf6 {[%clk 0:02:16]} 18. Rad1 {[%clk 0:01:50]}  exd5 {[%clk 0:02:15]} 19. cxd5 {[%clk 0:01:49]}  c4 {[%clk 0:02:06]} 20. Bxc4 {[%clk 0:01:46]}  Nxc4 {[%clk 0:02:07]} 21. Qxc4 {[%clk 0:01:45]}  Bxb2 {[%clk 0:02:05]} 22. e5 {[%clk 0:01:41]}  dxe5 {[%clk 0:01:56]} 23. Bg5 {[%clk 0:01:39]}  Qd6 {[%clk 0:01:54]} 24. Qh4 {[%clk 0:01:27]}  Bc3 {[%clk 0:01:51]} 25. Bf6 {[%clk 0:01:09]}  Ra6 {[%clk 0:01:48]} 26. Bxe5 {[%clk 0:01:03]}  Bxe5 {[%clk 0:01:44]} 27. Rxe5 {[%clk 0:01:02]}  Rxe5 {[%clk 0:01:43]} 28. Nxe5 {[%clk 0:01:02]}  Qxe5 {[%clk 0:01:44]} 29. Qd8+ {[%clk 0:01:02]}  Kg7 {[%clk 0:01:44]} 30. Qxc8 {[%clk 0:01:02]}  Rd6 {[%clk 0:01:40]} 31. Qc4 {[%clk 0:01:01]}  h5 {[%clk 0:01:36]} 32. h4 {[%clk 0:01:00]}  Qc3 {[%clk 0:01:30]} 33. Qxc3+ {[%clk 0:00:58]}  bxc3 {[%clk 0:01:31]} 34. Rc1 {[%clk 0:00:58]}  Rxd5 {[%clk 0:01:31]} 35. Rxc3 {[%clk 0:00:58]}  Rd4 {[%clk 0:01:31]} 36. Rc5 {[%clk 0:00:50]}  Rxa4 {[%clk 0:01:31]} 37. g3 {[%clk 0:00:50]}  Ra1+ {[%clk 0:01:29]} 38. Kg2 {[%clk 0:00:50]}  Kf6 {[%clk 0:01:29]} 39. Kf3 {[%clk 0:00:49]}  a4 {[%clk 0:01:29]} 40. Ra5 {[%clk 0:00:48]}  Ra2 {[%clk 0:01:27]} 41. Ke3 {[%clk 0:00:47]}  a3 {[%clk 0:01:27]} 42. f3 {[%clk 0:00:47]}  Ra1 {[%clk 0:01:25]} 43. Kf4 {[%clk 0:00:47]}  a2 {[%clk 0:01:21]} 44. Ra6+ {[%clk 0:00:47]}  Ke7 {[%clk 0:01:16]} 45. Kg5 {[%clk 0:00:46]}  Rg1 {[%clk 0:01:15]} 46. Rxa2 {[%clk 0:00:45]}  Rxg3+ {[%clk 0:01:15]} 47. Kf4 {[%clk 0:00:45]}  Rg1 {[%clk 0:01:15]} 48. Ra7+ {[%clk 0:00:42]}  Kf6 {[%clk 0:01:15]} 49. Ra6+ {[%clk 0:00:43]}  Kg7 {[%clk 0:01:15]} 50. Ra4 {[%clk 0:00:42]}  Rg2 {[%clk 0:01:14]} 51. Ke3 {[%clk 0:00:41]}  Kf6 {[%clk 0:01:12]} 52. Rb4 {[%clk 0:00:40]}  Kf5 {[%clk 0:01:11]} 53. Rb5+ {[%clk 0:00:39]}  Ke6 {[%clk 0:01:11]} 54. Rb6+ {[%clk 0:00:39]}  Ke5 {[%clk 0:01:11]} 55. Rb5+ {[%clk 0:00:39]}  Kf6 {[%clk 0:01:11]} 56. Rb6+ {[%clk 0:00:39]}  Kg7 {[%clk 0:01:11]} 57. Rb4 {[%clk 0:00:38]}  Rh2 {[%clk 0:01:11]} 58. Ra4 {[%clk 0:00:37]}  Kf6 {[%clk 0:01:10]} 59. Rb4 {[%clk 0:00:37]}  Ra2 {[%clk 0:01:05]} 60. Rc4 {[%clk 0:00:36]}  Ra5 {[%clk 0:01:05]} 61. Kf4 {[%clk 0:00:34]}  Rf5+ {[%clk 0:01:05]} 62. Kg3 {[%clk 0:00:33]}  Re5 {[%clk 0:01:05]} 63. Rb4 {[%clk 0:00:31]}  Kf5 {[%clk 0:01:05]} 64. Rf4+ {[%clk 0:00:31]}  Ke6 {[%clk 0:01:05]} 65. Rb4 {[%clk 0:00:32]}  Rd5 {[%clk 0:01:04]} 66. Re4+ {[%clk 0:00:31]}  Kf6 {[%clk 0:01:04]} 67. Rf4+ {[%clk 0:00:31]}  Kg7 {[%clk 0:01:04]} 68. Re4 {[%clk 0:00:32]}  f6 {[%clk 0:01:04]} 69. Re7+ {[%clk 0:00:28]}  Kh6 {[%clk 0:01:04]} 70. Re6 {[%clk 0:00:28]}  Rf5 {[%clk 0:01:04]} 71. Re7 {[%clk 0:00:27]}  g5 {[%clk 0:01:01]} 72. Re3 {[%clk 0:00:26]}  Rf4 {[%clk 0:00:58]} 73. hxg5+ {[%clk 0:00:24]}  fxg5 {[%clk 0:00:59]} 74. Re6+ {[%clk 0:00:24]}  Kg7 {[%clk 0:00:59]} 75. Rc6 {[%clk 0:00:24]}  h4+ {[%clk 0:01:00]} 76. Kg2 {[%clk 0:00:23]}  Rf6 {[%clk 0:01:00]} 77. Rc5 {[%clk 0:00:22]}  Kg6 {[%clk 0:01:00]} 78. Rb5 {[%clk 0:00:21]}  Rf5 {[%clk 0:01:00]} 79. Rb6+ {[%clk 0:00:20]}  Rf6 {[%clk 0:01:00]} 80. Rb5 {[%clk 0:00:20]}  Re6 {[%clk 0:01:00]} 81. Rc5 {[%clk 0:00:20]}  Kf6 {[%clk 0:01:00]} 82. Rb5 {[%clk 0:00:19]}  Re5 {[%clk 0:01:01]} 83. Rb8 {[%clk 0:00:17]}  Kf5 {[%clk 0:01:02]} 84. Rf8+ {[%clk 0:00:17]}  Kg6 {[%clk 0:01:02]} 85. Rg8+ {[%clk 0:00:17]}  Kf7 {[%clk 0:01:02]} 86. Rb8 {[%clk 0:00:16]}  Rd5 {[%clk 0:01:02]} 87. Kh3 {[%clk 0:00:15]}  Rf5 {[%clk 0:01:01]} 88. Kg4 {[%clk 0:00:14]}  Rc5 {[%clk 0:00:49]} 89. Rb6 {[%clk 0:00:10]}  Kg7 {[%clk 0:00:48]} 90. Ra6 {[%clk 0:00:09]}  Re5 {[%clk 0:00:46]} 91. Rb6 {[%clk 0:00:09]}  Kf7 {[%clk 0:00:46]} 92. Ra6 {[%clk 0:00:09]}  Re6 {[%clk 0:00:46]} 93. Ra5 {[%clk 0:00:08]}  Rg6 {[%clk 0:00:45]} 94. Ra7+ {[%clk 0:00:07]}  Kf6 {[%clk 0:00:44]} 95. Ra6+ {[%clk 0:00:07]}  Kg7 {[%clk 0:00:45]} 96. Ra7+ {[%clk 0:00:07]}  Kh6 {[%clk 0:00:45]} 97. Ra2 {[%clk 0:00:06]}  Rf6 {[%clk 0:00:45]} 98. Ra4 {[%clk 0:00:03]}  Kg6 {[%clk 0:00:43]} 99. Ra5 {[%clk 0:00:03]}  Rf4+ {[%clk 0:00:43]} 0-1


[Site "https://www.chess.com"]

[Event "Titled Tuesday Blitz May 11 2021"]
[White "Tristan, Leonardo"]
[Black "Seemann, Jakub"]
[WhiteFideId "113816"]
[BlackFideId "21874697"]
[WhiteElo "2404"]
[BlackElo "1793"]
[Result "1-0"]
[Round "01"]
[TimeControl "180+1"]
[Date "2021.05.11"]
[WhiteClock "0:00:07"]
[BlackClock "0:00:07"]

1. d4 {[%clk 0:02:56]}  Nf6 {[%clk 0:02:59]} 2. Bf4 {[%clk 0:02:56]}  e6 {[%clk 0:02:59]} 3. e3 {[%clk 0:02:57]}  c5 {[%clk 0:02:58]} 4. c3 {[%clk 0:02:57]}  Qb6 {[%clk 0:02:58]} 5. Qb3 {[%clk 0:02:56]}  Qxb3 {[%clk 0:02:57]} 6. axb3 {[%clk 0:02:56]}  Nc6 {[%clk 0:02:57]} 7. Na3 {[%clk 0:02:55]}  cxd4 {[%clk 0:02:57]} 8. exd4 {[%clk 0:02:51]}  d6 {[%clk 0:02:49]} 9. Nc4 {[%clk 0:02:41]}  Nd5 {[%clk 0:02:18]} 10. Bxd6 {[%clk 0:02:38]}  Bxd6 {[%clk 0:02:18]} 11. Nxd6+ {[%clk 0:02:39]}  Ke7 {[%clk 0:02:18]} 12. Ne4 {[%clk 0:02:32]}  b6 {[%clk 0:02:15]} 13. Nf3 {[%clk 0:02:29]}  Bb7 {[%clk 0:02:15]} 14. Ba6 {[%clk 0:02:24]}  Bxa6 {[%clk 0:02:11]} 15. Rxa6 {[%clk 0:02:25]}  Nc7 {[%clk 0:02:07]} 16. Ra2 {[%clk 0:02:18]}  a5 {[%clk 0:01:59]} 17. Ke2 {[%clk 0:02:17]}  Rhd8 {[%clk 0:01:54]} 18. Rd1 {[%clk 0:02:14]}  Nd5 {[%clk 0:01:53]} 19. Raa1 {[%clk 0:02:13]}  f5 {[%clk 0:01:42]} 20. Ned2 {[%clk 0:02:08]}  Rdb8 {[%clk 0:01:38]} 21. Nc4 {[%clk 0:02:05]}  b5 {[%clk 0:01:32]} 22. Nce5 {[%clk 0:02:05]}  Nxe5 {[%clk 0:01:32]} 23. Nxe5 {[%clk 0:02:06]}  Rb6 {[%clk 0:01:26]} 24. Rd2 {[%clk 0:01:48]}  a4 {[%clk 0:01:25]} 25. bxa4 {[%clk 0:01:32]}  Rxa4 {[%clk 0:01:26]} 26. Rxa4 {[%clk 0:01:26]}  bxa4 {[%clk 0:01:27]} 27. c4 {[%clk 0:01:26]}  Nf4+ {[%clk 0:01:25]} 28. Kf3 {[%clk 0:01:25]}  g5 {[%clk 0:01:24]} 29. Kg3 {[%clk 0:01:09]}  Nh5+ {[%clk 0:01:15]} 30. Kf3 {[%clk 0:01:01]}  Nf4 {[%clk 0:01:12]} 31. Ke3 {[%clk 0:00:29]}  Nxg2+ {[%clk 0:00:57]} 32. Kd3 {[%clk 0:00:28]}  Rb3+ {[%clk 0:00:54]} 33. Kc2 {[%clk 0:00:28]}  Ne1+ {[%clk 0:00:53]} 34. Kb1 {[%clk 0:00:21]}  a3 {[%clk 0:00:50]} 35. Ka2 {[%clk 0:00:15]}  Rxb2+ {[%clk 0:00:47]} 36. Rxb2 {[%clk 0:00:16]}  axb2 {[%clk 0:00:48]} 37. Kxb2 {[%clk 0:00:16]}  Kf6 {[%clk 0:00:44]} 38. Kc3 {[%clk 0:00:14]}  Ng2 {[%clk 0:00:43]} 39. c5 {[%clk 0:00:13]}  Ke7 {[%clk 0:00:43]} 40. Kc4 {[%clk 0:00:12]}  Nf4 {[%clk 0:00:43]} 41. Kb5 {[%clk 0:00:10]}  Nd5 {[%clk 0:00:38]} 42. Kc6 {[%clk 0:00:09]}  h5 {[%clk 0:00:27]} 43. Kb7 {[%clk 0:00:09]}  h4 {[%clk 0:00:20]} 44. c6 {[%clk 0:00:09]}  Kd6 {[%clk 0:00:19]} 45. Nf7+ {[%clk 0:00:10]}  Ke7 {[%clk 0:00:20]} 46. Nxg5 {[%clk 0:00:10]}  Kd6 {[%clk 0:00:17]} 47. Nf7+ {[%clk 0:00:08]}  Ke7 {[%clk 0:00:17]} 48. Ne5 {[%clk 0:00:08]}  Kd6 {[%clk 0:00:17]} 49. Nc4+ {[%clk 0:00:09]}  Ke7 {[%clk 0:00:17]} 50. Nb6 {[%clk 0:00:09]}  Nc3 {[%clk 0:00:06]} 51. c7 {[%clk 0:00:07]}  Nb5 {[%clk 0:00:07]} 52. c8=Q {[%clk 0:00:04]}  Nd6+ {[%clk 0:00:07]} 53. Kc6 {[%clk 0:00:05]}  Nxc8 {[%clk 0:00:08]} 54. Nxc8+ {[%clk 0:00:05]}  Kf6 {[%clk 0:00:09]} 55. Kd6 {[%clk 0:00:05]}  Kg5 {[%clk 0:00:09]} 56. Kxe6 {[%clk 0:00:05]}  Kg4 {[%clk 0:00:10]} 57. d5 {[%clk 0:00:06]}  Kh3 {[%clk 0:00:10]} 58. d6 {[%clk 0:00:06]}  Kxh2 {[%clk 0:00:11]} 59. d7 {[%clk 0:00:07]}  Kg1 {[%clk 0:00:11]} 60. d8=Q {[%clk 0:00:07]}  h3 {[%clk 0:00:12]} 61. Qh4 {[%clk 0:00:08]}  h2 {[%clk 0:00:10]} 62. Qg3+ {[%clk 0:00:08]}  Kh1 {[%clk 0:00:09]} 63. Qf3+ {[%clk 0:00:06]}  Kg1 {[%clk 0:00:08]} 64. Kxf5 {[%clk 0:00:06]}  h1=Q {[%clk 0:00:06]} 65. Qxh1+ {[%clk 0:00:06]}  Kxf2 {[%clk 0:00:06]} 66. Qh3 {[%clk 0:00:06]}  Kg1 {[%clk 0:00:05]} 67. Qf3 {[%clk 0:00:05]}  Kh2 {[%clk 0:00:05]} 68. Qg4 {[%clk 0:00:06]}  Kh1 {[%clk 0:00:05]} 69. Kf4 {[%clk 0:00:06]}  Kh2 {[%clk 0:00:06]} 70. Kf3 {[%clk 0:00:07]}  Kh1 {[%clk 0:00:07]} 71. Qg2# {[%clk 0:00:07]} 1-0


[Site "https://www.chess.com"]